Cogmind - Beta 16.1 --- EXPLORER MODE // 2026.02.16 @ 15:58:00 Player: Genju Result: Destroyed by as-53569 with Assembled Heavy Rifle Performance ------------- Evolutions (0) 0 Regions Visited (4) 800 Robots Destroyed (24) 120 Value Destroyed (676) 676 Prototype IDs (0) 0 Alien Tech Used (0) 0 Bonus (0) 0 TOTAL SCORE: 1596 Bonus ------- None Cogmind --------- Core Integrity 0/250 Matter 300/300 Energy 100/100 System Corruption 0% Temperature Cool (0) Movement Core (200) Ox3 Location -9/Mines Parts ------- > --- POWER (1) -------- (None) > --- PROPULSION (2) --- (None) > --- UTILITY (3) ------ Medium Storage Unit Visual Processing Unit Targeting Computer > --- WEAPON (2) ------- Katana > --- INVENTORY (10) --- Light Ion Engine Improved Aluminum Leg Improved Aluminum Leg Improved Aluminum Leg Improved Aluminum Leg Scrap Suit Structural Scanner Signal Interpreter Terrain Scanner Peak State ------------ > --- POWER ------------ Ion Engine > --- PROPULSION ------- Improved Aluminum Leg Carbon-fiber Leg > --- UTILITY ---------- Medium Storage Unit Visual Processing Unit Targeting Computer > --- WEAPON ----------- Small Laser Katana > --- INVENTORY -------- Light Ion Engine Improved Aluminum Leg Improved Aluminum Leg Improved Aluminum Leg Improved Aluminum Leg Scrap Suit Structural Scanner Signal Interpreter Terrain Scanner [Rating: 16] Favorites ----------- Power Ion Engine Engine Ion Engine Propulsion Improved Aluminum Leg Leg Improved Aluminum Leg Utility Targeting Computer Device Sensor Array Storage Medium Storage Unit Processor Targeting Computer Weapon EM Shotgun Energy Gun EM Shotgun Ballistic Gun Assault Rifle Slashing Weapon Katana Build | -11 -10 -10 -10 -9 ------- Run | Yrd Mat Min Exi Min Slots Evolved 1 | . 1 . . . Power . | . . . . . Propulsion . | . . . . . Utility 1 | . 1 . . . Weapon . | . . . . . Parts Attached 17 | 8 5 . . 4 Power 1 | 1 . . . . Engine 1 | 1 . . . . Core . | . . . . . Reactor . | . . . . . Propulsion 5 | 2 2 . . 1 Treads . | . . . . . Leg 5 | 2 2 . . 1 Wheel . | . . . . . Hover . | . . . . . Flight . | . . . . . Utility 5 | 3 1 . . 1 Device 2 | 1 1 . . . Storage 1 | 1 . . . . Processor 2 | 1 . . . 1 Hackware . | . . . . . Protection . | . . . . . Artifact . | . . . . . Weapon 6 | 2 2 . . 2 Energy Gun 3 | . 2 . . 1 Energy Cannon . | . . . . . Ballistic Gun 2 | 2 . . . . Ballistic Cannon . | . . . . . Launcher . | . . . . . Special Weapon . | . . . . . Impact Weapon . | . . . . . Slashing Weapon 1 | . . . . 1 Piercing Weapon . | . . . . . Special Melee Weapon . | . . . . . Unidentified Prototypes . | . . . . . Parts Lost 6 | . . 1 . 5 Power 1 | . . . . 1 Propulsion 2 | . . . . 2 Utility 1 | . . . . 1 Weapon 2 | . . 1 . 1 Highest Loss Streak 3 | . . 1 . 3 To Critical Strikes 1 | . . . . 1 Average Backups 8 | 3 8 9 9 9 Power . | . 1 1 1 1 Propulsion 3 | . 3 4 4 4 Utility 2 | 1 1 3 4 4 Weapon 1 | . 1 . . . Tool/Special . | . . . . . Unused Backups 14 | . 5 . . 9 Power 1 | . . . . 1 Propulsion 6 | . 2 . . 4 Utility 6 | . 2 . . 4 Weapon 1 | . 1 . . . Tool/Special . | . . . . . Average Slot Usage (%) 96 | . 98 99 87 89 Engine 11 | . 11 12 12 10 Leg 24 | . 24 25 25 24 Device 10 | . 11 12 12 4 Storage 12 | . 12 12 12 12 Processor 12 | . 12 12 12 15 Energy Gun 20 | . 22 24 12 10 Slashing Weapon 1 | . . . . 9 Peak Build Rating 16 | 7 13 14 12 16 Average Rating 12 | 4 12 13 12 13 On Entrance 8 | . 7 13 12 12 Avg Prop Armor Cover (%) . | . . . . . Naked Turns . | . . . . . Heaviest Build 22 | 19 22 22 19 21 Greatest Support 28 | 20 26 26 26 28 Greatest Overweight (x) 1 | 1 1 . . . Average Overweight (x) . | . . . . . Largest Inventory Capacity 10 | 10 10 10 10 10 Average Capacity 9 | 7 10 10 10 10 Most Carried 10 | 7 10 10 10 10 Average Carried 9 | 3 8 9 10 9 Final Capacity 10 | 10 10 10 10 10 Final Carried 10 | 7 10 10 10 10 Class Distribution -------------------- 100% | Hacker-Mutant Dominant Class ---------------- Hacker-Mutant | -10/Materials Hacker-Mutant | -10/Mines Hacker-Mutant | -10/Exiles Hacker-Mutant | -9/Mines Resources | -11 -10 -10 -10 -9 ----------- Run | Yrd Mat Min Exi Min Matter Collected 460 | 279 141 . . 40 Remotely . | . . . . . Salvage Created 994 | . 411 277 . 306 Parts 57 | . 23 26 . 8 Haulers Intercepted . | . . . . . Recyclers Shooed . | . . . . . Parts Field Recycled . | . . . . . Retrieved Matter . | . . . . . Parts Self-Destructed . | . . . . . Prevented . | . . . . . Parts Restored . | . . . . . Kills | -11 -10 -10 -10 -9 ------- Run | Yrd Mat Min Exi Min Combat Hostiles Destroyed 28 | . 8 8 . 12 Melee 9 | . . . . 9 Guns 17 | . 7 8 . 2 Classes Destroyed 7 | . 4 1 . 2 Builder 1 | . 1 . . . Watcher 3 | . 3 . . . Swarmer 6 | . 2 4 . . Grunt 10 | . 6 2 . 2 Duelist 2 | . . . . 2 Sentry 2 | . . 2 . . Assembled 8 | . . . . 8 Best Kill Streak 8 | . 5 2 . 8 Combat Bots Only 8 | . 4 2 . 8 Max Kills in Single Turn 2 | . 2 2 . 1 Gunslinging 1 | . . 1 . . Exploded . | . . . . . Melee 1 | . . . . 1 Uniques/NPCs Destroyed . | . . . . . Combat | -11 -10 -10 -10 -9 -------- Run | Yrd Mat Min Exi Min Hostile Shots Fired 147 | . 33 35 . 79 Missed 36 | . 11 8 . 17 Hits 111 | . 22 27 . 62 Melee 11 | . . . . 11 Projectile 100 | . 22 27 . 51 Critical Strikes 4 | . . 3 . 1 Damage Taken 985 | . 161 224 . 600 Core 253 | . 28 54 . 171 Absorbed by Shields . | . . . . . Ignored by Resistances 606 | . 104 138 . 364 Regen/Repaired (Parts) 126 | . 126 . . . Core Remaining (%) 100 | 100 . . . . Volleys Fired 45 | . 17 13 . 15 Largest 2 | . 2 2 . 1 Hottest 90 | . 90 90 . 45 Shots Fired 74 | . 34 25 . 15 Gun 74 | . 34 25 . 15 Cannon . | . . . . . Launcher . | . . . . . Special . | . . . . . Kinetic . | . . . . . Thermal . | . . . . . Explosive . | . . . . . Electromagnetic 74 | . 34 25 . 15 Robot Hit Streak 37 | . 18 23 . 37 Robot Miss Streak 2 | . 2 2 . 1 Penetration Max . | . . . . . Secondary Targets 3 | . . 3 . . Max Gunslinging Chain 1 | . . 1 . . Shots Hit Robots 75 | . 25 22 . 28 Core Hits 57 | . 22 17 . 18 Critical Kills . | . . . . . Critical Parts Destroyed . | . . . . . Critical Strikes . | . . . . . Melee Attacks 15 | . . . . 15 Impact . | . . . . . Slashing 15 | . . . . 15 Piercing . | . . . . . Sneak Attacks . | . . . . . Combat Hostiles . | . . . . . Follow-up Attacks . | . . . . . Damage Inflicted 1501 | . 435 322 . 744 Guns 995 | . 435 322 . 238 Cannons . | . . . . . Explosions . | . . . . . Melee 506 | . . . . 506 Ramming . | . . . . . Kinetic . | . . . . . Thermal . | . . . . . Explosive . | . . . . . Electromagnetic 995 | . 435 322 . 238 Impact . | . . . . . Slashing 506 | . . . . 506 Piercing . | . . . . . Highest Corruption . | . . . . . Average Corruption . | . . . . . Corruption Purged . | . . . . . Corruption Blocked . | . . . . . Overload Shots . | . . . . . Overflow Damage 12 | . . . . 12 Projectiles . | . . . . . Explosions . | . . . . . Melee 12 | . . . . 12 Knockbacks . | . . . . . Impact . | . . . . . Kinetic . | . . . . . Secondary . | . . . . . Self-Inflicted Damage . | . . . . . Shots . | . . . . . Rammed . | . . . . . Targets Rammed . | . . . . . Kicked . | . . . . . Crushed . | . . . . . Highest Temperature 228 | . 156 228 . 28 Average Temperature 62 | . 62 90 . 13 Received Heat Transfer 634 | . 123 165 . 346 Siege Activations . | . . . . . Martial Activations . | . . . . . Shielding Activations . | . . . . . Robots Disrupted . | . . . . . Combat Hostiles . | . . . . . Robots Corrupted 2 | . 1 . . 1 Combat Hostiles 2 | . 1 . . 1 Parts Fried 3 | . 2 . . 1 Impact Corruptions . | . . . . . Robots Melted . | . . . . . Combat Hostiles . | . . . . . Parts Melted . | . . . . . Heat Transferred . | . . . . . Parts Sabotaged . | . . . . . Parts Stolen . | . . . . . Parts Stripped . | . . . . . Power Chain Reactions . | . . . . . Alert | -11 -10 -10 -10 -9 ------- Run | Yrd Mat Min Exi Min Maximum Alert Level . | . . . . . Low Security (%) 100 | 100 100 100 . 100 Level 1 . | . . . . . Level 2 . | . . . . . Level 3 . | . . . . . Level 4 . | . . . . . Level 5 . | . . . . . High Security . | . . . . . Max Security . | . . . . . Peak Influence 100 | . 100 70 . 36 Initial . | . . . . . Average 7 | . 9 6 . 5 Influence Increases 590 | . 269 190 . 131 Destroy 0b10 Robot/C 400 | . 160 160 . 80 Destroy 0b10 Robot/NC 20 | . 20 . . . Destroy Leader 86 | . 36 30 . 20 Allied During Kill 1 | . . . . 1 Successful Hack 23 | . 23 . . . Lose Combat Pursuer 60 | . 30 . . 30 Influence Decreases 590 | . 269 190 . 131 Time Decay 574 | . 269 180 . 125 Lost Part 10 | . . 10 . . Lost Ally 6 | . . . . 6 Squads Dispatched . | . . . . . Investigation . | . . . . . Extermination . | . . . . . Reinforcement . | . . . . . Assault . | . . . . . Garrison . | . . . . . Intercept . | . . . . . Searches Triggered . | . . . . . Construction Impeded . | . . . . . Haulers Reinforced . | . . . . . Active Scanning Responses . | . . . . . Cargo Convoy Interrupts . | . . . . . Stealth | -11 -10 -10 -10 -9 --------- Run | Yrd Mat Min Exi Min Distress Signals . | . . . . . Communications Jammed . | . . . . . Distress Signals . | . . . . . Times Spotted 49 | . 13 8 . 28 Peak Tracking Total 19 | . 4 2 . 19 Tactical Retreats 5 | . 1 . . 4 Traps | -11 -10 -10 -10 -9 ------- Run | Yrd Mat Min Exi Min Traps Triggered 2 | . 2 . . . Indirectly . | . . . . . Trap Hack Attempts . | . . . . . Triggered . | . . . . . Disarmed . | . . . . . Reprogrammed . | . . . . . Reused . | . . . . . Traps Extracted . | . . . . . Installed . | . . . . . Triggered . | . . . . . Machines | -11 -10 -10 -10 -9 ---------- Run | Yrd Mat Min Exi Min Machines Disabled . | . . . . . Max in Single Turn . | . . . . . Machines Repaired . | . . . . . Machines Dismantled . | . . . . . Machines Sabotaged . | . . . . . Overloaded Fab Kills . | . . . . . Hacking | -11 -10 -10 -10 -9 --------- Run | Yrd Mat Min Exi Min Machines Accessed 11 | . 11 . . . Terminals 8 | . 8 . . . Fabricators . | . . . . . Repair Stations 1 | . 1 . . . Recycling Units 2 | . 2 . . . Scanalyzers . | . . . . . Garrison Access . | . . . . . Total Hacks 43 | . 43 . . . Successful 30 | . 30 . . . Failed 13 | . 13 . . . Catastrophic . | . . . . . Database Lockouts . | . . . . . Manual 29 | . 29 . . . Terminals 27 | . 27 . . . Fabricators . | . . . . . Repair Stations 10 | . 10 . . . Recycling Units 6 | . 6 . . . Scanalyzers . | . . . . . Garrison Access . | . . . . . Terminal Hacks 9 | . 9 . . . Part Schematic 9 | . 9 . . . Fabricator Hacks . | . . . . . Repair Station Hacks 10 | . 10 . . . Scan Component 5 | . 5 . . . Repair 5 | . 5 . . . Recycling Unit Hacks 2 | . 2 . . . Retrieve Components 2 | . 2 . . . Scanalyzer . | . . . . . Garrison Access Hacks . | . . . . . Unauthorized Hacks 9 | . 9 . . . Terminals 7 | . 7 . . . Botnet 7 | . 7 . . . Fabricators . | . . . . . Repair Stations . | . . . . . Recycling Units 2 | . 2 . . . Reject 2 | . 2 . . . Scanalyzers . | . . . . . Garrison Access . | . . . . . Data Cores Recovered . | . . . . . Used . | . . . . . Hacking Detections 10 | . 10 . . . Full Trace Events . | . . . . . Feedback Events . | . . . . . Feedback Blocked . | . . . . . Robot Schematics Acquired . | . . . . . Robots Built . | . . . . . Authchips . | . . . . . Time . | . . . . . Total Robot Build Rating . | . . . . . Part Schematics Acquired 8 | . 8 . . . Parts Built . | . . . . . Authchips . | . . . . . Time . | . . . . . Total Part Build Rating . | . . . . . Part Studies Acquired . | . . . . . Parts Repaired 5 | . 5 . . . Time 154 | . 154 . . . Parts Recycled . | . . . . . Recycled Matter . | . . . . . Retrieved Matter . | . . . . . Retrieved Components 7 | . 7 . . . Parts Scanalyzed . | . . . . . Part Schematics Acquired . | . . . . . Parts Damaged . | . . . . . Bothacking | -11 -10 -10 -10 -9 ------------ Run | Yrd Mat Min Exi Min Used RIF Installer . | . . . . . Robots Hacked . | . . . . . Non-combat . | . . . . . Combat . | . . . . . Robot Hacks Applied . | . . . . . Relay Couplers Released . | . . . . . Fabnet Peak Effective % . | . . . . . Robots Rewired . | . . . . . Allies Hacked . | . . . . . Hacks Repelled . | . . . . . Allies | -11 -10 -10 -10 -9 -------- Run | Yrd Mat Min Exi Min Total Allies 5 | . . . . 5 Largest Group 4 | . . . . 4 Highest-Rated Group 44 | . . . . 44 Highest-Rated Ally 31 | . . . . 31 Total Orders . | . . . . . Ally Attacks 36 | . . . . 36 Total Damage 437 | . . . . 437 Kills 3 | . . . . 3 Allies Corrupted . | . . . . . Allies Melted . | . . . . . Intel | -11 -10 -10 -10 -9 ------- Run | Yrd Mat Min Exi Min Active Infowar (turns) 3203 | 11 1493 1040 333 326 Optics 136 | . . . . 136 Sensors 3067 | 11 1493 1040 333 190 Robot Analysis Total . | . . . . . Derelict Logs Recovered . | . . . . . Drone Launches . | . . . . . Drone Recoveries . | . . . . . Exploration | -11 -10 -10 -10 -9 ------------- Run | Yrd Mat Min Exi Min Turns Passed 3430 | 74 1498 1040 333 485 Spaces Moved 2262 | 48 869 742 278 325 Core 14 | 14 . . . . Treads . | . . . . . Legs 2248 | 34 869 742 278 325 Wheels . | . . . . . Hover . | . . . . . Flight . | . . . . . Fastest Speed 50 | 50 120 120 120 120 Average Speed 119 | 104 120 120 120 120 Slowest Speed 190 | 120 190 120 120 120 Overloaded Moves . | . . . . . Propulsion Burnouts . | . . . . . Robots Hopped . | . . . . . Potential Cave-ins . | . . . . . Cave-ins Triggered . | . . . . . Exploration Rate (%) 68 | 2 94 98 74 73 Regions Visited 4 Branch Regions 3 Pre-discovered Areas . | . . . . . Known Exits Taken 4 | 1 1 1 1 . Unknown Exits Taken . | . . . . . Scrap Searched 2 | . . 1 . 1 Spaces Dug . | . . . . . Terrain Destroyed . | . . . . . Melee . | . . . . . Projectile . | . . . . . AOE . | . . . . . Terrain Rammed . | . . . . . Walls Destroyed . | . . . . . Machines Disabled . | . . . . . Actions | -11 -10 -10 -10 -9 --------- Run | Yrd Mat Min Exi Min Total 2884 | 71 1285 868 277 383 Wait 497 | 2 367 107 . 21 Move 2258 | 47 868 741 277 325 Hop . | . . . . . Pick Up 29 | 14 11 3 . 1 Fast Attach 11 | . 9 . . 2 Attach 9 | 7 1 . . 1 Detach . | . . . . . Swap 6 | 1 4 . . 1 Drop 14 | . 8 4 . 2 Fire 45 | . 17 13 . 15 Melee 15 | . . . . 15 Ram . | . . . . . Kick . | . . . . . Crush . | . . . . . Escape Stasis . | . . . . . Rewire . | . . . . . Trap . | . . . . . Miscellaneous . | . . . . . Route ------- -11/Scrapyard -10/Materials (discovered 5 exits: *Mat x3 / *Min / *Sub) -10/Mines (discovered 3 exits: *Mat x2 / *Exi) -10/Exiles -9/Mines (discovered 1 exit: *Mat) History --------- Turn | Location | Event 9 | -11/Scrapyard | Identified exit to Materials 9 | -11/Scrapyard | Discovered exit to Materials (range 14) 75 | -11/Scrapyard | Entered Materials 75 | -10/Materials | Evolved 1 slot: Utility x1 222 | -10/Materials | Identified exit to Subcaves 222 | -10/Materials | Discovered exit to Subcaves (range 7) 309 | -10/Materials | Build established: Hacker-Mutant 413 | -10/Materials | Identified exit to Materials 413 | -10/Materials | Discovered exit to Materials (range 16) 516 | -10/Materials | Discovered exit to Materials (range 8) 669 | -10/Materials | Identified exit to Mines 669 | -10/Materials | Discovered exit to Mines (range 16) 1156 | -10/Materials | Discovered exit to Materials (range 10) 1205 | -10/Materials | Repaired EM Shotgun 1233 | -10/Materials | Repaired Ion Engine 1266 | -10/Materials | Repaired EM Shotgun 1300 | -10/Materials | Repaired Imp. Aluminum Leg 1333 | -10/Materials | Repaired Imp. Aluminum Leg 1573 | -10/Materials | Entered Mines 1876 | -10/Mines | Discovered exit to Materials (range 10) 1988 | -10/Mines | Found a Scrap Suit stashed away for nefarious purposes 1992 | -10/Mines | Found Scrap Suit 2574 | -10/Mines | Discovered exit to Materials (range 12) 2608 | -10/Mines | Deemed a non-threat by the Exiles lab entrance 2608 | -10/Mines | Identified exit to Exiles 2608 | -10/Mines | Discovered exit to Exiles (range 5) 2613 | -10/Mines | Entered Exiles 2613 | -10/Exiles | Found Exiles lab abandoned 2933 | -10/Exiles | Identified exit to Mines 2933 | -10/Exiles | Discovered exit to Mines (range 14) 2946 | -10/Exiles | Entered Mines 3347 | -9/Mines | Assisted by bots powering up and referring to "LRC-V3" 3358 | -9/Mines | Identified exit to Materials 3358 | -9/Mines | Discovered exit to Materials (range 9) 3366 | -9/Mines | Assembled infested the area 3388 | -9/Mines | Core integrity fell below 50% 3421 | -9/Mines | Core integrity fell below 20% 3431 | -9/Mines | Destroyed by as-53569 with Assembled Heavy Rifle Last Messages --------------- X1-VN9(z) knocked back. as-57550 destroyed. Trooper 2b destroyed. Destroyed Asb. F-torch. as-61693 destroyed. as-75612 destroyed. as-68195 destroyed. as-59352 sneak attacks. U-05 Engineer system corrupted by crushing effect. U-05 Engineer knocked back. U-05 Engineer destroyed. as-88761 destroyed. Sml. Laser destroyed. as-59352 destroyed. as-26280 destroyed. Imp. Aluminum Leg destroyed. Carbon-fiber Leg destroyed. as-75506 destroyed. as-72068 destroyed. Map ----- +----------------------------------------------------+ | | | | | | | | | | | | | | | | | | | | | ????????????????????????????????????????????????? | | #????########???????????????????????????????????? | | ##??## ##??????????????????????????????????? | | #### #??????????????????????????????????? | | ## #??????????????????????????????????? | | ########??????????????????????????????????? | | ##?????????????????????????????????????????? | | ##??????????????????????????????????????????? | | # ###???????????????????????????????????????????? | | # #????????????????#######???###????????????????? | | #???????????????## ##?# ##???????????????? | | ###???????????????# ## ##??????????????? | | ??????????????????# %!%a % #####??????????? | | ??????????????????## = %aaa #??????????? | | ???????????????????#### %=aa ????? | | ??????????????????????## @###%= ????? | | ???????????????????????# #??# ????? | | ???????????????????????# #???## ! [%= ?????? | | ???????????????????????# ###???# =%! %?????? | | ???????????????????????# ##???# [?????? | | ????????????????????####g #????### *%??????? | | #?????#####????????## < #???????? ??????? | | ##????# #???????## ##????????? ???????? | | ##???# ######??# ###???????????#???????? | | #???# # #### ##?????????????????????? | | #???# ##??????????????????????? | | ##??## #### ##???????????????????????? | | ##???# ##??#####????????????????????????? | | #????# # ###????????????????????????????????? | | #????## ## #??????????????????????????????????? | | #?????###### #??????????????????????????????????? | | ??????????# #?????########?????????????????????? | | ?????????# #?????# #?????????????????????? | | ????????# #?????# #?????????????????????? | | ####### ####### """ #?????????????????????? | | """ #?????????????????????? | | ##### ########## """ #?????????????????????? | | ? ##???# #????????# #?????????????????????? | | ??#????## #????????# """ #?????????????????????? | | ??????## #????????# """ #?????????????????????? | +----------------------------------------------------+ Best States ------------- Heat Dissipation 25 Energy Generation 10 Energy Capacity 250 Matter Stores 300 Matter Capacity 300 Sight Range 18 Robot Scan Range 14 Terrain Scan Density 10 Resistance: KI 35 Resistance: TH 35 Resistance: EX 35 Resistance: EM 35 Resistance: I 35 Resistance: S 35 Resistance: P 35 Evasion (%) 55 Targeting Accuracy 5 Offensive Hacking 20 Item Schematics ----------------- EM Pulse Gun | -10/Materials | Hacked Aluminum Leg | -10/Materials | Hacked Sensor Array | -10/Materials | Hacked Signal Interpreter | -10/Materials | Hacked Structural Scanner | -10/Materials | Hacked Mining Laser | -10/Materials | Hacked Med. Laser | -10/Materials | Hacked Datajack | -10/Materials | Hacked Robot Schematics ------------------ None Fabricated ------------ Nothing Repaired ---------- EM Shotgun | 26% | -10/Materials Ion Engine | 50% | -10/Materials EM Shotgun | 74% | -10/Materials Imp. Aluminum Leg | 75% | -10/Materials Imp. Aluminum Leg | 79% | -10/Materials Studied --------- None Alien Tech Used ----------------- None Achievements -------------- None Challenges ------------ None Game ------ Seed FactoryGammaConstruct Manual? 0 Play Time 00:30:30 Cumulative 36.4 hours Start 2026.02.16 @ 15:32:18 End 2026.02.16 @ 15:58:00 Sessions 1 Manual Loads 0 Difficulty Explorer Special Mode None Game No. 54 Rogue 1 Adventurer 3 Explorer 50 Win Type - Total 0 Types 0/0/0/0/0/0/0/0/0/0 Lore% 15 Gallery% 17 Achievement% 14 Wizard Run 0 Options --------- Layout 1 ASCII 0 Keyboard 0 Movement Numpad Keybinds 0 Fullscreen 1 Font 32/SmallcapsGlow Map View 50x35 Zoom Use 0% Tactical HUD 0 Map Filters NONE Filters NONE Steam 1 RUN: ad5e49a1-f04c-4e7b-a536-af5da422aa25